bitfinex-derivatives/quotes_ETHF0:USTF0_20241022
["timestamp","ask_amount","ask_price","bid_price","bid_amount"]
[1729640841406,3.5301,2621.2,2620.9,0.34354]
[1729640841712,1.37,2621.0,2620.8,1.56475]
[1729640842016,1.37,2620.9,2620.7,0.34356]
[1729640842205,1.37,2620.8,2620.7,0.34356]
[1729640843511,1.37,2620.8,2620.6,1.2212]
[1729640843512,1.71356,2620.8,2620.6,1.2212]
[1729640843807,1.71356,2620.8,2620.6,0.817]
[1729640844203,1.71357,2620.8,2620.6,0.817]
[1729640845105,4.15958,2620.7,2620.3,0.75802]
[1729640845309,3.2078,2620.9,2620.3,1.24]
[1729640845310,1.71361,2620.5,2620.3,1.24]
[1729640845499,1.37,2620.4,2620.3,0.8256]
[1729640845700,1.71361,2620.4,2620.3,0.8256]
[1729640845907,1.71361,2620.4,2620.3,0.4154]
[1729640846205,6.556,2620.4,2620.0,0.2]
[1729640846403,1.37,2620.1,2619.2,3.2078]
[1729640846604,1.37,2620.2,2619.4,0.34374]
[1729640846605,1.37,2619.5,2619.4,0.34374]
[1729640846807,1.37,2619.5,2619.3,0.75395]
[1729640847111,4.5778,2619.8,2619.4,1.37]
[1729640847308,1.37,2619.7,2619.5,1.37]
[1729640847510,4.5778,2619.8,2619.6,1.71371]
[1729640848202,4.57695012,2619.8,2619.6,1.37]
[1729640848406,3.20695012,2619.8,2619.3,1.2447]
[1729640848814,3.20695012,2619.8,2619.6,0.34371]
[1729640849208,3.20695012,2619.8,2619.4,0.34374]
[1729640849411,3.20695012,2619.8,2619.3,1.2447]
[1729640849412,3.20695012,2619.8,2619.6,0.3437]
[1729640850009,3.20695012,2619.8,2619.7,0.3437]
[1729640850512,3.2078,2620.1,2619.9,0.34367]
[1729640850809,3.2078,2620.1,2619.5,3.2078]
[1729640850810,3.2078,2620.1,2620.0,1.55986]
[1729640851216,2.98,2620.5,2620.3,0.34361]
[1729640851217,3.2078,2620.4,2620.3,0.34361]
[1729640851407,3.2078,2620.4,2620.2,0.34363]
[1729640852212,3.2078,2620.4,2620.1,0.34364]
[1729640856017,3.2078,2620.4,2620.3,0.34362]
[1729640856611,3.2078,2620.4,2620.2,0.34363]
[1729640857015,3.2078,2620.4,2620.0,1.2162]
[1729640857016,3.2078,2620.4,2620.0,4.1962]
[1729640857213,0.34358,2620.6,2620.2,0.34363]
[1729640857810,0.34358,2620.6,2620.1,3.2078]
[1729640858013,0.34358,2620.6,2620.2,0.34363]
[1729640858222,0.34358,2620.6,2620.1,3.2078]
[1729640858516,0.34358,2620.6,2620.2,0.34363]
[1729640858911,0.34358,2620.6,2620.3,0.34362]
[1729640859107,0.34358,2620.6,2620.2,0.34362]
[1729640859515,0.34358,2620.6,2620.3,0.34362]
[1729640859719,0.34358,2620.6,2620.2,0.34362]
[1729640859919,0.34358,2620.6,2620.3,0.34362]
[1729640860113,0.34358,2620.6,2620.2,0.34363]
[1729640860317,0.3436,2620.5,2620.2,0.34363]
[1729640860517,0.34361,2620.4,2620.1,0.34364]
[1729640860723,0.3436,2620.5,2620.1,0.34364]
[1729640861125,0.3436,2620.5,2620.2,0.34363]
[1729640862517,0.3436,2620.5,2620.0,1.2162]
[1729640862719,6.1878,2620.8,2620.0,1.2162]
[1729640862923,6.1878,2620.8,2620.2,0.34363]
[1729640863221,0.3436,2620.5,2620.2,0.34363]
[1729640864117,6.1878,2620.8,2620.2,0.34363]
[1729640864318,0.3436,2620.5,2620.0,1.2162]
[1729640864515,0.3436,2620.5,2620.2,0.34363]
[1729640865026,0.34359,2620.6,2620.2,0.34363]
[1729640865228,6.1878,2620.8,2620.2,0.34363]
[1729640865627,0.34359,2620.6,2620.2,0.34363]
[1729640865822,0.3436,2620.5,2620.2,0.34363]
[1729640867424,0.34361,2620.4,2620.1,0.34364]
[1729640867926,3.3236,2620.5,2620.1,0.34364]
[1729640868124,3.3236,2620.5,2620.0,4.424]
[1729640868428,3.2078,2620.7,2620.2,0.34363]
[1729640868429,1.38,2620.3,2620.2,0.34363]
[1729640869023,1.38,2620.3,2620.0,5.804]
[1729640869328,1.38,2620.3,2620.1,0.34365]
[1729640869626,1.38,2620.3,2620.2,0.34363]
[1729640870729,1.38,2620.4,2620.3,0.34362]
[1729640870931,1.38,2620.4,2620.2,1.72363]
[1729640871124,1.38,2620.4,2620.2,0.34363]
[1729640872020,1.38,2620.3,2620.2,0.34363]
[1729640877333,1.38,2620.3,2620.2,4.16043]
[1729640877533,1.38,2620.4,2620.2,5.54043]
[1729640877735,1.38,2620.4,2620.3,0.34362]
[1729640878627,1.38,2620.4,2620.2,1.72363]
[1729640878833,1.38,2620.4,2620.3,0.34362]
[1729640880629,2.03166482,2621.2,2620.9,0.34354]
[1729640880630,4.5878,2621.0,2620.9,0.34354]
[1729640880830,4.5878,2621.0,2620.8,1.38]
[1729640881037,4.5878,2621.0,2620.9,0.73794]
[1729640881038,3.2078,2621.0,2620.9,0.73794]
[1729640881936,4.5878,2621.0,2620.9,0.73794]
[1729640882629,4.5878,2621.0,2620.9,2.11794]
[1729640883435,4.5878,2621.0,2620.9,0.73794]
[1729640888039,3.2078,2621.0,2620.9,2.11794]
[1729640888336,3.2078,2621.4,2620.9,1.7744]
[1729640888635,3.55128,2621.4,2621.3,0.34349]
[1729640888831,3.55128,2621.4,2621.2,1.7235]
[1729640889132,3.2078,2621.4,2621.3,1.58239]
[1729640889333,3.55128,2621.4,2621.3,1.2389]
[1729640889539,3.55128,2621.4,2621.3,0.4143]
[1729640890040,4.93128,2621.4,2621.3,0.4143]
[1729640890441,4.93128,2621.4,2621.3,0.75779]
[1729640891134,3.2078,2621.4,2621.3,2.13779]
[1729640891342,1.38,2621.6,2621.5,0.34346]
[1729640891542,4.93125,2621.7,2621.6,0.34345]
[1729640891740,0.34345,2621.6,2621.5,1.72345]
[1729640891940,1.72345,2621.6,2621.5,1.72346]
[1729640892845,4.93125,2621.7,2621.5,1.38]
[1729640893047,3.55125,2621.7,2621.6,0.34345]
[1729640893246,0.34345,2621.6,2621.5,1.72346]
[1729640893446,1.72345,2621.6,2621.5,1.72346]
[1729640894836,1.38,2621.6,2621.5,1.72346]
[1729640895345,1.72345,2621.6,2621.5,1.72346]
[1729640895548,3.2078,2621.7,2621.5,1.72346]
[1729640895549,3.2078,2621.7,2621.6,0.34345]
[1729640895848,4.5878,2621.7,2621.6,0.34345]
[1729640896149,4.93124,2621.7,2621.6,0.34345]
[1729640897544,4.5878,2621.7,2621.6,1.72345]
[1729640897738,3.2078,2621.7,2621.6,1.72345]
[1729640898137,4.5878,2621.7,2621.6,1.72345]
[1729640898750,4.93124,2621.7,2621.6,1.72345]
[1729640899046,4.5878,2621.7,2621.6,1.72345]
[1729640900035,4.93124,2621.7,2621.6,1.72345]
[1729640900541,4.5878,2621.7,2621.6,1.72345]
[1729640901141,3.2078,2621.7,2621.6,1.72345]
[1729640902943,4.5878,2621.7,2621.5,1.38]
[1729640903142,4.5878,2621.7,2621.4,0.34347]
[1729640903143,1.72346,2621.6,2621.4,0.34347]
[1729640903549,1.72346,2621.6,2621.4,0.76657]
[1729640905151,1.38,2621.6,2621.4,0.76657]
[1729640905458,1.38,2621.6,2621.4,0.4231]
[1729640905639,0.34346,2621.5,2621.4,0.4231]
[1729640906342,0.34348,2621.4,2621.3,0.4143]
[1729640906541,1.72348,2621.4,2621.3,0.4143]
[1729640906743,1.38,2621.4,2621.2,0.4065]
[1729640906948,0.34349,2621.3,2621.2,0.4065]
[1729640907446,1.72349,2621.4,2621.2,1.7865]
[1729640907646,0.34349,2621.3,2621.2,1.7865]
[1729640907946,1.72349,2621.4,2621.2,1.7865]
[1729640911249,0.34349,2621.4,2621.2,1.7865]
[1729640911651,0.34349,2621.4,2621.3,1.8057]
[1729640911652,0.34348,2621.4,2621.3,1.8057]
[1729640912353,3.2078,2621.4,2621.3,1.8057]
[1729640912556,3.55128,2621.4,2621.3,1.8057]
[1729640913453,3.55128,2621.4,2621.3,0.4257]
[1729640913454,4.93128,2621.4,2621.3,0.4257]
[1729640915259,3.55128,2621.4,2621.3,1.8057]
[1729640917751,3.2078,2621.4,2621.3,1.8057]
[1729640920754,3.55128,2621.4,2621.3,1.8057]
[1729640928864,3.2078,2621.4,2621.3,1.8057]
[1729640929262,0.34348,2621.4,2621.3,1.8057]
[1729640929460,3.55128,2621.4,2621.3,1.8057]
[1729640930063,3.2078,2621.4,2621.3,1.8057]
[1729640931454,3.55128,2621.4,2621.3,1.8057]
[1729640931858,3.2078,2621.4,2621.3,1.8057]
[1729640932456,3.2078,2621.4,2621.3,2.14919]
[1729640932663,3.2078,2621.4,2621.3,3.52919]
[1729640932962,0.34345,2621.7,2621.3,1.8057]
[1729640932963,3.2078,2621.7,2621.3,1.8057]
[1729640933158,0.19266027,2622.0,2621.6,1.38]
[1729640933159,3.2078,2622.0,2621.6,1.38]
[1729640933365,3.55121,2622.0,2621.9,1.38]
[1729640933565,4.93121,2622.0,2621.8,1.38]
[1729640933776,3.2078,2622.0,2621.9,1.38]
[1729640934459,3.5512,2622.0,2621.9,1.38]
[1729640935064,3.5512,2622.0,2621.9,1.72341]
[1729640935265,3.2078,2622.0,2621.9,1.72341]
[1729640935874,3.5512,2622.0,2621.9,1.72341]
[1729640936175,3.5512,2622.0,2621.9,2.11501]
[1729640936369,3.2078,2622.0,2621.9,2.11501]
[1729640937966,4.9312,2622.0,2621.9,2.11501]
[1729640938676,3.2078,2622.0,2621.9,2.11501]
[1729640940368,1.38,2622.2,2622.1,0.34338]
[1729640940576,1.72337,2622.2,2622.1,0.34338]
[1729640940967,1.38,2622.2,2622.1,0.34338]
[1729640941165,4.93116,2622.3,2622.1,1.72338]
[1729640941368,3.55116,2622.3,2622.2,0.4004]
[1729640941569,4.93116,2622.3,2622.2,0.8215]
[1729640941871,10.63981,2622.3,2621.5,0.34346]
[1729640942075,1.72345,2621.6,2621.5,0.8215]
[1729640943466,0.3435,2621.3,2621.1,0.34351]
[1729640943672,0.3435,2621.3,2620.9,3.2078]
[1729640943673,1.7235,2621.3,2621.2,0.7816]
[1729640943966,1.7235,2621.3,2621.2,2.1616]
[1729640948975,0.34355,2620.9,2620.6,0.34358]
[1729640949179,0.34354,2621.0,2620.8,0.3876]
[1729640949365,3.2078,2621.1,2620.8,0.3876]
[1729640949366,0.34354,2620.9,2620.8,0.3876]
[1729640949566,0.34354,2621.0,2620.8,0.3876]
[1729640949773,0.34354,2620.9,2620.8,0.3876]
[1729640950578,1.72354,2620.9,2620.8,0.3876]
[1729640951577,1.38,2620.9,2620.0,40.8]
[1729640951781,1.38,2620.5,2620.4,1.7905]
[1729640951974,0.3436,2620.5,2620.4,1.7905]
[1729640952169,0.34359,2620.6,2620.4,1.7905]
[1729640952376,0.34359,2620.6,2620.5,1.38]
[1729640955482,0.3436,2620.5,2620.4,1.7905]
[1729640956689,1.72359,2620.6,2620.4,1.7905]
[1729640956886,1.38,2620.6,2620.4,1.7905]
[1729640957087,0.3436,2620.5,2620.4,1.7905]
[1729640958790,1.38,2620.7,2620.4,1.7905]
[1729640958994,0.34359,2620.6,2620.5,1.38]
[1729640960999,1.72358,2620.7,2620.5,1.38]
[1729640961295,1.72358,2620.7,2620.6,1.7966]
[1729640963294,1.72358,2620.7,2620.6,0.4166]
[1729640966703,4.93138,2620.7,2620.6,0.4166]
[1729640968594,3.2078,2620.7,2620.6,0.4166]
[1729640968802,3.2078,2620.7,2620.6,2.14018]
[1729640969010,1.72356,2620.8,2620.6,1.7966]
[1729640969198,0.34357,2620.7,2620.6,1.7966]
[1729640969509,1.72357,2620.7,2620.6,1.7966]
[1729640970609,1.38,2620.7,2620.6,1.7966]
[1729640970801,0.34357,2620.8,2620.6,1.7966]
[1729640971001,0.34357,2620.7,2620.6,1.7966]
[1729640989214,0.34357,2620.7,2620.6,0.4166]
[1729640989414,0.34357,2620.7,2620.6,1.7966]
[1729641004732,0.34357,2620.7,2620.6,0.4166]
[1729641007427,0.34357,2620.7,2620.6,1.7966]
[1729641013436,0.34357,2620.7,2620.6,0.4166]
[1729641016140,0.34357,2620.7,2620.6,1.7966]
[1729641016349,3.2078,2620.8,2620.6,5.6126]
[1729641016545,3.2078,2621.2,2620.7,8.4038]
[1729641016742,3.2078,2621.2,2621.1,1.38]
[1729641016743,3.55131,2621.2,2621.1,1.38]
[1729641017046,0.34349,2621.3,2621.1,1.72351]
[1729641017249,0.34349,2621.3,2621.2,2.5772]
[1729641018845,1.72349,2621.3,2621.2,1.1972]
[1729641025453,0.34349,2621.3,2621.2,2.5772]
[1729641025652,0.34349,2621.4,2621.3,0.34349]
[1729641025948,3.2078,2622.0,2621.3,6.5752]
[1729641026147,4.9312,2622.0,2621.9,1.38]
[1729641026349,1.7234,2622.0,2621.9,1.38]
[1729641026552,1.38,2622.0,2621.8,2.6187]
[1729641026752,0.34341,2621.9,2621.8,2.6187]
[1729641026949,1.72341,2621.9,2621.8,2.6187]
[1729641028448,0.34341,2621.9,2621.8,2.6187]
[1729641028644,1.72341,2621.9,2621.8,2.6187]
[1729641028845,0.34341,2622.0,2621.8,2.96213]
[1729641029048,1.38,2622.0,2621.8,2.96212]
[1729641029250,0.34341,2621.9,2621.8,2.96212]
[1729641029449,0.34341,2621.9,2621.8,2.6187]
[1729641029950,1.72341,2621.9,2621.8,2.6187]
[1729641031157,1.38,2621.9,2621.8,2.6187]
[1729641031348,0.3434,2622.0,2621.8,2.96212]
[1729641031546,3.626,2622.3,2621.9,1.72341]
[1729641031850,0.34339,2622.1,2622.0,1.38]
[1729641033348,3.2078,2622.6,2622.0,1.38]
[1729641033548,1.72335,2622.4,2622.3,1.38]
[1729641033848,1.38,2622.4,2622.3,1.38]
[1729641034152,1.72335,2622.4,2622.3,1.38]
[1729641036058,0.34336,2622.3,2622.2,2.2333]
[1729641036360,1.72336,2622.3,2622.2,2.2333]
[1729641037149,0.34336,2622.3,2622.2,2.2333]
[1729641038258,0.34336,2622.3,2622.2,2.57667]
[1729641038455,0.34336,2622.3,2622.2,2.2333]
[1729641042549,0.34336,2622.3,2622.2,2.57667]
[1729641042756,0.34336,2622.3,2622.2,2.2333]
[1729641043962,1.38,2622.5,2622.2,2.2333]
[1729641044167,1.38,2622.5,2622.2,2.57667]
[1729641044168,0.34335,2622.4,2622.2,2.57667]
[1729641045161,1.38,2622.5,2622.2,2.2333]
[1729641045460,1.72334,2622.5,2622.3,0.34336]
[1729641045756,1.72333,2622.6,2622.4,1.38]
[1729641045964,1.38,2622.7,2622.5,1.38]
[1729641046260,0.34332,2622.6,2622.5,1.38]
[1729641047053,0.3879,2622.8,2622.5,1.38]
[1729641047259,0.34333,2622.6,2622.2,0.8533]
[1729641047555,0.34333,2622.6,2622.4,0.34334]
[1729641047767,3.2078,2622.9,2622.4,3.2078]
[1729641048058,3.55108,2622.9,2622.8,1.38]
[1729641049160,3.55108,2622.9,2622.8,2.214]
[1729641049359,0.34328,2622.9,2622.8,2.214]
[1729641049654,3.7184,2623.3,2622.8,2.214]
[1729641049859,1.72324,2623.2,2623.1,1.38]
[1729641050360,0.34326,2623.1,2623.0,1.72327]
[1729641050552,0.34325,2623.2,2623.1,0.34325]
[1729641050752,1.38,2623.5,2623.1,1.72325]
[1729641050956,4.18811,2623.6,2623.2,1.7961]
[1729641050957,0.34323,2623.3,2623.2,1.7961]
[1729641051854,1.72323,2623.3,2623.2,0.4161]
[1729641052053,5.192,2623.3,2622.8,0.4179]
[1729641052257,5.192,2623.3,2622.7,3.2078]
[1729641052258,0.34329,2622.8,2622.7,3.9417]
[1729641052557,1.72329,2622.8,2622.7,4.9784]
[1729641052962,1.72329,2622.8,2622.7,5.32171]
[1729641052963,1.38,2622.8,2622.7,5.32171]
[1729641053260,1.72329,2622.9,2622.7,5.32171]
[1729641053457,1.72329,2622.9,2622.8,1.38]
[1729641053650,1.72329,2622.9,2622.7,0.3906]
[1729641053651,1.38,2622.9,2622.7,0.3906]
[1729641053856,0.34329,2622.8,2622.7,1.7706]
[1729641054262,1.38,2622.9,2622.7,1.7706]
[1729641054462,1.72327,2623.0,2622.8,1.38]
[1729641054662,0.34327,2623.0,2622.9,1.38]
[1729641055164,1.72327,2623.0,2622.9,1.38]
[1729641055463,1.72327,2623.0,2622.8,1.72329]
[1729641056365,1.72327,2623.0,2622.8,1.38]
[1729641057067,0.34328,2622.9,2622.8,1.38]
[1729641057256,1.72328,2623.0,2622.8,1.38]
[1729641057861,1.38,2623.0,2622.8,1.38]
[1729641058159,1.72328,2623.0,2622.8,1.38]
[1729641058555,1.72328,2622.9,2622.7,5.7103]
[1729641058959,1.38,2622.9,2622.7,5.7103]
[1729641060065,0.34328,2623.0,2622.8,1.38]
[1729641062956,0.34328,2623.0,2622.9,1.38]
[1729641063556,0.34329,2622.8,2622.7,3.5984]
[1729641064972,0.34329,2622.8,2622.7,0.3906]
[1729641066465,5.1928,2622.8,2622.1,3.2078]
[1729641066668,2.23822,2622.9,2622.1,3.2078]
[1729641066669,1.72334,2622.5,2622.2,1.72336]
[1729641066867,3.5948,2622.7,2622.1,4.0284]
[1729641066868,1.38,2622.6,2622.3,1.38]
[1729641067172,0.34334,2622.5,2622.4,0.4068]
[1729641068475,0.34334,2622.5,2622.4,0.75015]
[1729641070791,1.72334,2622.5,2622.4,0.4068]
[1729641071975,1.72334,2622.5,2622.1,4.0284]
[1729641071976,1.38,2622.5,2622.1,4.0284]
[1729641072182,0.34337,2622.2,2622.1,4.37177]
[1729641073286,0.34337,2622.2,2622.1,4.0284]
[1729641073586,1.72337,2622.2,2622.1,4.0284]
[1729641073886,1.72337,2622.2,2622.1,3.604]
[1729641075678,1.72337,2622.2,2622.1,0.3962]
[1729641076787,2.14067,2622.2,2622.1,0.3962]
[1729641079085,1.72337,2622.2,2622.1,0.3962]
[1729641080891,4.93117,2622.2,2622.1,0.3962]
[1729641090094,4.93117,2622.2,2621.8,0.7987]
[1729641090095,0.34341,2621.9,2621.8,0.7987]
[1729641090288,1.72341,2621.9,2621.8,0.7987]
[1729641091589,1.72341,2621.9,2621.8,1.2216]
[1729641099804,1.38,2622.0,2621.8,1.56503]
[1729641100102,0.34339,2622.1,2621.9,1.72341]
[1729641100303,0.34339,2622.1,2622.0,0.3434]
[1729641101005,1.38,2622.2,2622.1,0.34339]
[1729641101006,1.72338,2622.2,2622.1,0.34339]
[1729641101194,1.72337,2622.3,2622.2,0.34337]
[1729641102002,1.72337,2622.3,2622.2,0.8167]
[1729641102203,1.72337,2622.3,2621.6,3.55124]
[1729641102204,0.34344,2621.7,2621.6,3.55124]
[1729641102407,1.72344,2621.7,2621.6,3.55124]
[1729641102609,1.72344,2621.7,2621.6,7.36564]
[1729641103113,1.72344,2621.7,2621.6,3.2078]
[1729641103411,1.38,2621.7,2621.6,3.55125]
[1729641103602,1.38,2621.7,2621.6,4.35125]
[1729641105410,1.72344,2621.7,2621.6,4.0078]
[1729641105706,1.72344,2621.7,2621.6,0.8]
[1729641107609,1.72344,2621.7,2621.6,1.14345]
[1729641107811,1.38,2621.7,2621.6,1.14345]
[1729641108503,1.72344,2621.7,2621.6,1.14345]
[1729641109816,0.34344,2621.7,2621.6,1.14345]
[1729641110411,3.2078,2622.1,2621.6,2.18]
[1729641110605,0.34344,2621.8,2621.7,1.72343]
[1729641111508,0.34344,2621.8,2621.7,0.34343]
[1729641111907,1.72342,2621.9,2621.8,0.34343]
[1729641112506,1.72342,2621.9,2621.8,1.38]
[1729641113215,1.72342,2621.9,2621.8,1.72343]
[1729641113616,3.2078,2622.2,2621.8,1.38]
[1729641113811,0.34341,2621.9,2621.8,1.72342]
[1729641120316,0.34341,2621.9,2621.7,0.3993]
[1729641120509,1.72341,2621.9,2621.8,0.34343]
[1729641123522,0.34341,2621.9,2621.8,0.34343]
[1729641126514,0.34341,2621.9,2621.8,1.72343]
[1729641127608,0.34341,2621.9,2621.8,1.38]
[1729641127807,1.72341,2621.9,2621.8,0.34343]
[1729641128421,1.38,2621.9,2621.7,1.7793]
[1729641128617,0.34343,2621.8,2621.7,2.12273]
[1729641131014,0.34342,2621.9,2621.8,0.34343]
[1729641131926,0.34343,2621.8,2621.7,2.12272]
[1729641136624,3.2078,2622.2,2621.7,1.7793]
[1729641136819,4.5878,2622.2,2621.8,1.38]
[1729641137129,0.34341,2622.0,2621.8,1.72342]
[1729641137324,0.34341,2621.9,2621.8,1.72342]
[1729641139617,3.6059,2622.5,2622.1,0.34338]
[1729641139816,0.34336,2622.3,2622.2,2.5483]
[1729641140023,0.34336,2622.3,2622.2,2.89167]
[1729641140427,0.34336,2622.4,2622.2,2.89167]
[1729641140626,0.34336,2622.4,2622.3,1.38]
[1729641140827,0.34336,2622.4,2622.3,1.72336]
[1729641141031,0.34334,2622.5,2622.3,1.72336]
[1729641141333,0.34334,2622.5,2622.4,1.38]
[1729641143736,1.38,2622.5,2622.4,1.38]
[1729641143937,1.72333,2622.5,2622.4,1.38]
[1729641144127,1.72333,2622.5,2622.4,1.72335]
[1729641144328,1.72333,2622.5,2622.4,1.38]
[1729641144830,1.72333,2622.5,2622.2,4.3761]
[1729641144831,1.38,2622.5,2622.2,2.89167]
[1729641145033,1.72335,2622.4,2622.2,2.89167]
[1729641146030,0.34335,2622.4,2622.2,2.89167]
[1729641146737,1.38,2622.3,2622.2,1.1683]
[1729641146941,1.38,2622.3,2622.2,2.89167]
[1729641148231,1.38,2622.3,2621.7,0.34343]
[1729641148232,0.34341,2621.9,2621.7,0.34343]
[1729641148429,1.38,2621.8,2621.6,0.3906]
[1729641148632,1.72344,2621.7,2621.6,0.3906]
[1729641148826,0.34345,2621.6,2621.5,3.2078]
[1729641149734,0.34345,2621.6,2621.5,4.5878]
[1729641151745,0.34345,2621.6,2621.5,4.93126]
[1729641152633,1.38,2621.7,2621.5,1.72346]
[1729641152634,1.72345,2621.7,2621.5,1.72346]
[1729641153244,0.34345,2621.6,2621.5,1.72346]
[1729641158538,3.2078,2621.9,2621.5,1.38]
[1729641158839,3.55122,2621.9,2621.8,1.38]
[1729641159436,3.55122,2621.9,2621.8,0.4265]
[1729641160943,3.55122,2621.9,2621.8,0.825]
[1729641163042,3.2078,2621.9,2621.8,1.2448]
[1729641163242,0.34339,2622.1,2622.0,0.34339]
[1729641163747,0.34339,2622.1,2622.0,1.72339]
[1729641163942,1.72339,2622.1,2622.0,1.38]
[1729641165846,1.72339,2622.1,2622.0,1.7234]
[1729641166749,1.72339,2622.1,2622.0,1.38]
[1729641167648,1.72339,2622.1,2622.0,1.7234]
[1729641167950,1.72339,2622.1,2622.0,1.38]
[1729641168347,1.72339,2622.1,2622.0,1.7234]
[1729641168943,1.72339,2622.1,2622.0,1.38]
[1729641171147,1.72339,2622.1,2622.0,1.7234]
[1729641171365,0.34338,2622.2,2622.1,0.34338]
[1729641171653,0.34339,2622.1,2622.0,1.72339]
[1729641171850,1.72339,2622.1,2622.0,1.72339]
[1729641175358,0.34339,2622.1,2622.0,1.72339]
[1729641178257,1.72338,2622.2,2622.1,0.34338]
[1729641178863,1.72338,2622.2,2622.1,0.4116]
[1729641183559,1.72338,2622.2,2622.1,0.75499]
[1729641183955,1.38,2622.2,2622.1,0.75499]
[1729641184161,0.34337,2622.2,2622.1,0.75499]
[1729641194470,0.34337,2622.2,2622.1,2.13499]
[1729641197573,0.34337,2622.3,2622.2,0.34337]
[1729641197766,0.34337,2622.3,2622.2,1.15337]
[1729641198865,0.34336,2622.4,2622.2,0.81]
[1729641199074,0.34336,2622.3,2622.2,1.15337]
[1729641199264,0.34336,2622.3,2622.2,0.81]
[1729641202874,0.34336,2622.3,2622.2,1.15337]
[1729641203469,0.34336,2622.3,2622.2,0.81]
[1729641205277,0.34336,2622.3,2622.2,1.15337]
[1729641205976,0.34336,2622.3,2622.2,0.81]
[1729641210983,0.34333,2622.6,2622.4,0.34333]
[1729641211285,0.34333,2622.6,2622.5,1.72333]
[1729641211581,0.34333,2622.6,2622.5,1.38]
[1729641212174,0.34333,2622.6,2622.5,1.7771]
[1729641212376,0.34333,2622.6,2622.5,2.12043]
[1729641213282,0.3433,2622.8,2622.7,0.3433]
[1729641213479,0.34329,2622.9,2622.8,0.34329]
[1729641213678,0.34329,2622.9,2622.8,1.72329]
[1729641213880,3.2078,2623.0,2622.8,1.38]
[1729641214177,3.2078,2623.0,2622.6,0.8065]
[1729641214178,0.34326,2623.1,2623.0,0.34327]
[1729641214378,0.34326,2623.1,2623.0,2.52977]
[1729641214584,1.72325,2623.2,2623.1,0.34325]
[1729641214784,1.38,2623.2,2623.1,1.38]
[1729641214980,1.72324,2623.2,2623.1,1.38]
[1729641218380,4.5878,2623.3,2623.1,1.38]
[1729641218571,4.93103,2623.3,2623.2,0.34324]
[1729641219586,3.2078,2623.6,2623.2,1.38]
[1729641219783,4.93099,2623.6,2623.5,1.38]
[1729641219982,4.5878,2623.6,2623.0,0.8065]
[1729641220188,0.34325,2623.1,2623.0,2.1865]
[1729641220888,0.34325,2623.2,2623.1,0.34325]
[1729641221088,0.34325,2623.2,2623.1,1.38]
[1729641224387,0.34325,2623.2,2623.1,1.72325]
[1729641225192,3.551,2623.6,2623.5,0.3432]
[1729641225489,3.55099,2623.6,2623.5,1.38]
[1729641226086,3.55099,2623.6,2623.5,1.7771]
[1729641226480,3.55099,2623.6,2623.5,0.3971]
[1729641226675,4.93099,2623.6,2623.5,0.3971]
[1729641230986,4.93099,2623.6,2623.5,0.7907]
[1729641231491,3.2078,2623.6,2623.5,2.5139]
[1729641231692,3.55099,2623.6,2623.5,2.5139]
[1729641232090,3.55099,2623.6,2623.5,2.1707]
[1729641233489,3.55099,2623.6,2623.5,2.5598]
[1729641234589,3.55099,2623.6,2623.5,1.1798]
[1729641237995,4.93099,2623.6,2623.5,1.1798]
[1729641247495,4.93099,2623.6,2623.5,0.3971]
[1729641247797,4.93099,2623.6,2623.1,1.54395]
[1729641247798,0.34324,2623.2,2623.1,1.54395]
[1729641248098,0.34322,2623.4,2623.3,0.34322]
[1729641248299,0.34322,2623.4,2623.3,1.72322]
[1729641248700,0.34322,2623.4,2623.3,1.38]
[1729641250102,1.72322,2623.4,2623.3,1.38]
[1729641250603,1.72322,2623.4,2623.1,2.53235]
[1729641250604,0.34324,2623.2,2623.1,2.53235]
[1729641255302,0.34324,2623.2,2623.1,2.1891]
[1729641255497,3.55104,2623.2,2623.1,2.1891]
[1729641255800,0.34324,2623.2,2623.1,2.1891]
[1729641256805,0.34324,2623.2,2623.1,2.53235]
[1729641257002,0.34324,2623.2,2623.1,2.1891]
[1729641281118,0.34324,2623.3,2623.1,6.0011]
[1729641281313,0.34324,2623.3,2623.1,2.1891]
[1729641281510,0.34324,2623.3,2623.2,41.14324]
[1729641281820,0.34324,2623.3,2623.2,40.8]
[1729641282826,3.2078,2623.5,2623.1,2.53235]
[1729641283122,0.34324,2623.2,2623.1,2.53235]
[1729641283512,0.34324,2623.2,2623.1,6.34435]
[1729641283817,3.2078,2623.5,2623.2,0.34323]
[1729641283818,0.34323,2623.3,2623.2,0.34323]
[1729641284012,0.34323,2623.3,2623.2,1.72323]
[1729641285613,0.34323,2623.4,2623.3,0.34322]
[1729641285808,0.34323,2623.4,2623.3,2.13622]
[1729641292317,0.34323,2623.4,2623.3,1.793]
[1729641296925,0.34323,2623.4,2623.3,2.13623]
[1729641297223,0.34323,2623.4,2623.3,1.793]
[1729641300328,0.34324,2623.2,2623.1,1.7693]
[1729641303530,0.34324,2623.2,2623.1,2.1614]
[1729641319339,0.34324,2623.2,2623.1,2.50465]
[1729641319642,0.34324,2623.2,2623.1,2.1614]